fUSD/lending_fUSD_20260221
["ID","MTS","AMOUNT","RATE_DAILY","PERIOD"]
[406283801,1771688352582,150.0,0.00013547,2]
[406283804,1771688463190,173.356127,0.0001311,2]
[406283805,1771688472668,-160.0,0.0001356,2]
[406283806,1771688472696,-198.0,0.0001356,2]
[406283807,1771688472727,-250.0,0.0001356,2]
[406283808,1771688473104,151.0,0.0001356,2]
[406283809,1771688488366,-262.0,0.0001356,2]
[406283810,1771688527073,188.0,0.000136,2]
[406283811,1771688527314,150.0,0.000136,2]
[406283812,1771688534324,151.0,0.000136,2]
[406283813,1771688537452,-600.0,0.000136,4]
[406283814,1771688537481,-500.0,0.000136,4]
[406283815,1771688537509,-300.0,0.000136,4]
[406283816,1771688544051,500.0,0.0001,2]
[406283817,1771688548117,500.0,0.0001,2]
[406283818,1771688549787,500.0,0.0001,2]
[406283819,1771688550270,500.0,0.0001,2]
[406283820,1771688550754,200.01,0.0001,2]
[406283821,1771688550777,299.99,0.0001,2]
[406283822,1771688551321,679.78682572,0.0001,2]
[406283823,1771688567641,-250.0,0.00013615,2]
[406283824,1771688567668,-500.0,0.00013629,2]
[406283825,1771688567696,-270.82,0.00013689,2]
[406283826,1771688567727,-1200.0,0.00013698,2]
[406283827,1771688567755,-258.37,0.00013698,2]
[406283828,1771688571228,-41.63,0.00013698,2]
[406283829,1771688574911,4916.75,0.0001369,2]
[406283830,1771688846181,747.99,0.0001,2]
[406283831,1771688857955,500.0,0.0001,2]
[406283832,1771688858461,500.0,0.0001,2]
[406283833,1771688858973,500.0,0.0001,2]
[406283834,1771688911703,-1000.0,0.00012891,2]
[406283835,1771688911729,-150.0,0.00013018,2]
[406283836,1771688911754,-29059.61696634,0.0001349,2]
[406283837,1771688911779,-1600.0,0.000135,4]
[406283838,1771688911804,-160.0,0.00013547,3]
[406283839,1771688911830,-178.0,0.00013547,3]
[406283840,1771688911858,-27852.38303366,0.0001359,2]
[406283852,1771689031897,-178.9966715,0.0001349,2]
[406283853,1771689031907,-614.11930783,0.0001349,2]
[406283854,1771689031916,-261.0,0.0001349,2]
[406283855,1771689031926,-333.72091666,0.0001349,2]
[406283856,1771689031935,-2026.98779752,0.0001349,2]
[406283857,1771689031944,-250.0,0.0001354,2]
[406283858,1771689031957,-304.12596972,0.00013571,2]
[406283859,1771689031966,-236.36181911,0.0001358,2]
[406283860,1771689031975,-151.0,0.00013587,2]
[406283861,1771689031985,-151.0,0.00013587,2]
[406283862,1771689031995,-300.0,0.00013589,2]
[406283863,1771689032005,-1200.0,0.00013589,2]
[406283864,1771689032014,-160.0,0.0001359,3]
[406283865,1771689032024,-169.0,0.0001359,3]
[406283866,1771689032033,-54305.42052022,0.0001359,2]
[406283867,1771689032045,-2536.610475,0.0001359,2]
[406283868,1771689032057,-278.2984035,0.0001359,2]
[406283869,1771689032068,-342.94,0.0001359,2]
[406283870,1771689032081,-1014.31929586,0.0001359,2]
[406283871,1771689032093,-1931.43592063,0.0001359,2]
[406283872,1771689032104,-2141.50928177,0.0001359,2]
[406283889,1771689038485,-3753.19685657,0.0001359,2]
[406283890,1771689038496,-13265.51581573,0.0001359,2]
[406283891,1771689038507,-37211.20578801,0.0001359,2]
[406283892,1771689038518,-2936.57468482,0.0001359,2]
[406283893,1771689038530,-8460.0,0.0001359,2]
[406283894,1771689038542,-15872.94042967,0.0001359,2]
[406283895,1771689038554,-3328097.64949456,0.0001359,2]
[406283896,1771689038563,-2500.0,0.0001359,2]
[406283897,1771689038573,-2238.49271131,0.0001359,2]
[406283898,1771689038582,-150.0,0.00013593,2]
[406283899,1771689038591,-14064.86879083,0.00013594,2]
[406283900,1771689038602,-767.72112566,0.00013594,2]
[406283901,1771689038612,-3300.0,0.000136,4]
[406283902,1771689038622,-150.0,0.00013663,2]
[406283903,1771689038631,-150.0,0.00013663,2]
[406283904,1771689038641,-250.8964726,0.00013689,2]
[406283905,1771689038650,-505.61228041,0.00013698,2]
[406283906,1771689038660,-500.0,0.00013698,2]
[406283907,1771689038669,-780.44,0.00013699,2]
[406283908,1771689038679,-32860.742,0.000137,2]
[406283909,1771689038688,-1000.0,0.000137,2]
[406283910,1771689038697,-4091.44,0.000137,2]
[406283911,1771689038707,-9999.99,0.000137,2]
[406283912,1771689038716,-999.99,0.000137,2]
[406283913,1771689038725,-870.3,0.000137,2]
[406283914,1771689038734,-150.99,0.000137,2]
[406283915,1771689038744,-5000.0,0.000137,5]
[406283916,1771689038753,-161.81596152,0.00013718,2]
[406283917,1771689038762,-236.36181911,0.00013782,2]
[406283918,1771689038771,-200774.85,0.00013792,2]
[406283919,1771689038781,-150.99,0.00013792,2]
[406283920,1771689038790,-9999.99,0.00013792,2]
[406283921,1771689038799,-200.0,0.00013792,2]
[406283922,1771689038807,-151.0,0.00013792,2]
[406283923,1771689038817,-500.0,0.00013792,2]
[406283924,1771689038826,-151.0,0.00013792,2]
[406283926,1771689038835,-500.0,0.00013792,2]
[406283928,1771689038845,-151.0,0.00013792,2]
[406283930,1771689038854,-500.0,0.00013792,2]
[406283932,1771689038864,-151.0,0.00013792,2]
[406283934,1771689038873,-151.0,0.00013792,2]
[406283936,1771689038883,-500.0,0.00013792,2]
[406283938,1771689038892,-151.0,0.00013792,2]
[406283940,1771689038902,-500.0,0.00013792,2]
[406283943,1771689038911,-151.0,0.00013792,2]
[406283946,1771689038921,-500.0,0.00013792,2]
[406283948,1771689038930,-500.0,0.00013792,2]
[406283950,1771689038939,-151.0,0.00013792,2]
[406283953,1771689038948,-500.0,0.00013792,2]
[406283954,1771689038958,-500.0,0.00013792,2]
[406283957,1771689038967,-500.0,0.00013792,2]
[406283958,1771689038976,-151.0,0.00013792,2]
[406283960,1771689038986,-500.0,0.00013792,2]
[406283963,1771689038996,-500.0,0.00013792,2]
[406283965,1771689039006,-500.0,0.00013792,2]
[406283967,1771689039015,-151.0,0.00013792,2]
[406283969,1771689039025,-500.0,0.00013792,2]
[406283971,1771689039035,-500.0,0.00013792,2]
[406283972,1771689039045,-151.0,0.00013792,2]
[406283974,1771689039054,-500.0,0.00013792,2]
[406283976,1771689039064,-500.0,0.00013792,2]
[406283978,1771689039075,-151.0,0.00013792,2]
[406283980,1771689039088,-500.0,0.00013792,2]
[406283982,1771689039098,-151.0,0.00013792,2]
[406283984,1771689039107,-500.0,0.00013792,2]
[406283986,1771689039116,-151.0,0.00013792,2]
[406283988,1771689039127,-500.0,0.00013792,2]
[406283990,1771689039137,-151.0,0.00013792,2]
[406283992,1771689039146,-500.0,0.00013792,2]
[406283994,1771689039157,-151.0,0.00013792,2]
[406283996,1771689039167,-500.0,0.00013792,2]
[406283999,1771689039176,-151.0,0.00013792,2]
[406284001,1771689039186,-151.0,0.00013792,2]
[406284003,1771689039195,-151.0,0.00013792,2]
[406284005,1771689039204,-151.0,0.00013792,2]
[406284007,1771689039214,-151.0,0.00013792,2]
[406284008,1771689039223,-151.0,0.00013792,2]
[406284010,1771689039233,-151.0,0.00013792,2]
[406284012,1771689039243,-151.0,0.00013792,2]
[406284013,1771689039252,-151.0,0.00013792,2]
[406284014,1771689039260,-151.0,0.00013792,2]
[406284015,1771689039269,-202.62533237,0.00013792,2]
[406284016,1771689039278,-151.0,0.00013792,2]
[406284017,1771689039287,-151.0,0.00013792,2]
[406284018,1771689039296,-151.0,0.00013792,2]
[406284019,1771689039306,-151.0,0.00013792,2]
[406284020,1771689039314,-151.0,0.00013792,2]
[406284021,1771689039323,-500.0,0.00013792,2]
[406284022,1771689039332,-9999.99,0.00013792,2]
[406284024,1771689039341,-5403.05,0.00013792,2]
[406284026,1771689039350,-299.99,0.00013792,2]
[406284028,1771689039359,-5301.71,0.00013792,2]
[406284030,1771689039368,-2196.66,0.00013792,2]
[406284032,1771689039378,-9999.99,0.00013792,2]
[406284034,1771689039387,-500.0,0.00013792,2]
[406284036,1771689039397,-500.0,0.00013799,2]
[406284038,1771689039406,-500.0,0.00013799,2]
[406284040,1771689039415,-500.0,0.00013799,2]
[406284042,1771689039424,-500.0,0.00013799,2]
[406284044,1771689039433,-500.0,0.00013799,2]
[406284046,1771689039442,-227.87,0.000138,2]
[406284048,1771689039451,-6700.0,0.000138,5]
[406284050,1771689039460,-647.0,0.00013854,2]
[406284052,1771689039469,-3435.57,0.00013857,2]
[406284054,1771689039479,-1148.0,0.00013865,2]
[406284056,1771689039488,-1123.0,0.00013881,2]
[406284058,1771689039497,-8400.0,0.000139,5]
[406284060,1771689039506,-19121.18155166,0.00013931,2]
[406284062,1771689039516,-658.0,0.0001395,2]
[406284064,1771689039525,-29059.61696634,0.0001398,2]
[406284066,1771689039534,-500.0,0.00014,2]
[406284068,1771689039544,-500.0,0.00014,2]
[406284070,1771689039553,-500.0,0.00014,2]
[406284072,1771689039562,-500.0,0.00014,2]
[406284074,1771689039571,-500.0,0.00014,2]
[406284076,1771689039580,-500.0,0.00014,2]
[406284078,1771689039589,-500.0,0.00014,2]
[406284080,1771689039598,-500.0,0.00014,2]
[406284082,1771689039607,-500.0,0.00014,2]
[406284084,1771689039616,-500.0,0.00014,2]
[406284086,1771689039625,-500.0,0.00014,2]
[406284088,1771689039634,-500.0,0.00014,2]
[406284090,1771689039644,-500.0,0.00014,2]
[406284092,1771689039653,-500.0,0.00014,2]
[406284094,1771689039661,-500.0,0.00014,2]
[406284096,1771689039671,-500.0,0.00014,2]
[406284098,1771689039681,-500.0,0.00014,2]
[406284099,1771689039690,-500.0,0.00014,2]
[406284101,1771689039699,-500.0,0.00014,2]
[406284103,1771689039708,-500.0,0.00014,2]
[406284105,1771689039717,-500.0,0.00014,2]
[406284107,1771689039726,-500.0,0.00014,2]
[406284109,1771689039735,-500.0,0.00014,2]
[406284111,1771689039744,-500.0,0.00014,2]
[406284113,1771689039754,-500.0,0.00014,2]
[406284115,1771689039764,-500.0,0.00014,2]
[406284117,1771689039774,-500.0,0.00014,2]
[406284120,1771689039784,-500.0,0.00014,2]
[406284122,1771689039793,-500.0,0.00014,2]
[406284123,1771689039803,-500.0,0.00014,2]
[406284125,1771689039812,-500.0,0.00014,2]
[406284128,1771689039821,-500.0,0.00014,2]
[406284130,1771689039831,-500.0,0.00014,2]
[406284132,1771689039840,-500.0,0.00014,2]
[406284134,1771689039849,-299.99,0.00014,2]
[406284136,1771689039859,-501.52973822,0.00014,2]
[406284138,1771689039869,-500.0,0.00014,2]
[406284141,1771689039879,-500.0,0.00014,2]
[406284143,1771689039888,-500.0,0.00014,2]
[406284145,1771689039897,-500.0,0.00014,2]
[406284147,1771689039907,-500.0,0.00014,2]
[406284149,1771689039916,-500.0,0.00014,2]
[406284151,1771689039925,-500.0,0.00014,2]
[406284153,1771689039934,-500.0,0.00014,2]
[406284155,1771689039943,-500.0,0.00014,2]
[406284157,1771689039952,-500.0,0.00014,2]
[406284159,1771689039962,-500.0,0.00014,2]
[406284161,1771689039971,-500.0,0.00014,2]
[406284163,1771689039980,-820.22317428,0.00014,2]
[406284165,1771689039989,-500.0,0.00014,2]
[406284167,1771689039998,-500.0,0.00014,2]
[406284169,1771689040007,-500.0,0.00014,2]
[406284171,1771689040016,-500.0,0.00014,2]
[406284173,1771689040026,-903.57997268,0.00014,2]
[406284175,1771689040035,-153.54765348,0.00014003,2]
[406284177,1771689040045,-500.0,0.00014066,2]
[406284179,1771689040054,-14064.86879077,0.00014072,2]
[406284181,1771689040063,-227.87,0.00014074,2]
[406284183,1771689040072,-13311.11,0.00014146,2]
[406284186,1771689040084,-1500.0,0.00014264,2]
[406284189,1771689040094,-193.0,0.0001432,2]
[406284191,1771689040103,-200.0,0.0001434,2]
[406284192,1771689040113,-545.79913084,0.0001434,2]
[406284194,1771689040122,-227.88,0.00014348,2]
[406284197,1771689040132,-29059.61696634,0.0001447,2]
[406284198,1771689040142,-1000.0,0.00014502,2]
[406284200,1771689040151,-897.48085067,0.00014507,2]
[406284202,1771689040160,-151.0,0.00014548,2]
[406284204,1771689040169,-14064.86879077,0.00014551,2]
[406284206,1771689040178,-255.0,0.00014708,2]
[406284208,1771689040187,-258.72,0.00014711,2]
[406284210,1771689040196,-8643.18,0.00014746,2]
[406284212,1771689040206,-879.66812425,0.00014785,2]
[406284214,1771689040214,-250.0,0.00014839,2]
[406284216,1771689040225,-5000.0,0.00014839,2]
[406284218,1771689040234,-934.82345024,0.00014865,2]
[406284220,1771689040243,-500.0,0.00014872,2]
[406284222,1771689040252,-500.0,0.00014872,2]
[406284224,1771689040262,-500.0,0.00014872,2]
[406284226,1771689040271,-500.0,0.00014872,2]
[406284228,1771689040281,-500.0,0.00014872,2]
[406284231,1771689040290,-500.0,0.00014872,2]
[406284232,1771689040300,-500.0,0.00014872,2]
[406284234,1771689040309,-500.0,0.00014872,2]
[406284237,1771689040319,-500.0,0.00014872,2]
[406284239,1771689040328,-500.0,0.00014872,2]
[406284240,1771689040337,-500.0,0.00014872,2]
[406284243,1771689040346,-500.0,0.00014872,2]
[406284245,1771689040355,-500.0,0.00014872,2]
[406284247,1771689040365,-500.0,0.00014872,2]
[406284248,1771689040374,-500.0,0.00014872,2]
[406284250,1771689040383,-500.0,0.00014872,2]
[406284252,1771689040392,-627.47385881,0.00014872,2]
[406284254,1771689040401,-500.0,0.00014872,2]
[406284256,1771689040410,-500.0,0.00014872,2]
[406284258,1771689040419,-500.0,0.00014872,2]
[406284260,1771689040428,-204.27737629,0.00014872,2]
[406284262,1771689040437,-500.0,0.00014872,2]
[406284264,1771689040447,-500.0,0.00014872,2]
[406284266,1771689040456,-500.0,0.00014872,2]
[406284268,1771689040465,-500.0,0.00014872,2]
[406284270,1771689040474,-500.0,0.00014872,2]
[406284272,1771689040483,-554.43343843,0.00014872,2]
[406284274,1771689040492,-500.0,0.00014872,2]
[406284276,1771689040501,-500.0,0.00014872,2]
[406284278,1771689040510,-500.0,0.00014872,2]
[406284280,1771689040519,-500.0,0.00014872,2]
[406284282,1771689040528,-564.4785355,0.00014872,2]
[406284284,1771689040538,-500.0,0.00014872,2]
[406284286,1771689040547,-500.0,0.00014872,2]
[406284288,1771689040556,-500.0,0.00014872,2]
[406284290,1771689040565,-500.0,0.00014872,2]
[406284292,1771689040575,-500.0,0.00014872,2]
[406284294,1771689040584,-513.53363328,0.00014872,2]
[406284296,1771689040594,-500.0,0.00014872,2]
[406284298,1771689040603,-500.0,0.00014872,2]
[406284300,1771689040612,-500.0,0.00014872,2]
[406284302,1771689040621,-500.0,0.00014872,2]
[406284304,1771689040630,-500.0,0.00014872,2]
[406284306,1771689040639,-500.0,0.00014872,2]
[406284308,1771689040648,-500.0,0.00014872,2]
[406284310,1771689040659,-500.0,0.00014872,2]
[406284312,1771689040667,-500.0,0.00014872,2]
[406284314,1771689040677,-500.0,0.00014872,2]
[406284316,1771689040686,-386.77491301,0.00014872,2]
[406284318,1771689040696,-500.0,0.00014872,2]
[406284320,1771689040705,-500.0,0.00014872,2]
[406284322,1771689040714,-511.47956793,0.00014872,2]
[406284324,1771689040723,-503.02114283,0.00014872,2]
[406284326,1771689040732,-505.47338901,0.00014872,2]
[406284328,1771689040741,-500.0,0.00014872,2]
[406284330,1771689040751,-500.0,0.00014872,2]
[406284332,1771689040760,-541.91630413,0.00014872,2]
[406284334,1771689040768,-200.0,0.00014888,2]
[406284336,1771689040777,-500.0,0.0001489,2]
[406284338,1771689040786,-500.0,0.0001489,2]
[406284340,1771689040795,-150.0,0.0001489,2]
[406284342,1771689040804,-500.0,0.0001489,2]
[406284344,1771689040814,-150.0,0.0001489,2]
[406284346,1771689040823,-500.0,0.0001489,2]
[406284348,1771689040832,-500.0,0.0001489,2]
[406284350,1771689040841,-500.0,0.0001489,2]
[406284352,1771689040850,-500.0,0.0001489,2]
[406284354,1771689040859,-625.0,0.0001489,2]
[406284356,1771689040868,-500.0,0.0001489,2]
[406284358,1771689040876,-500.0,0.0001489,2]
[406284360,1771689040886,-500.0,0.0001489,2]
[406284362,1771689040895,-500.0,0.0001489,2]
[406284364,1771689040904,-150.0,0.0001489,2]
[406284366,1771689040913,-150.0,0.0001489,2]
[406284368,1771689040922,-500.0,0.0001489,2]
[406284370,1771689040931,-500.0,0.0001489,2]
[406284372,1771689040941,-500.0,0.0001489,2]
[406284374,1771689040950,-500.0,0.0001489,2]
[406284376,1771689040959,-420.0,0.00014894,2]
[406284378,1771689040968,-500.0,0.00014945,2]
[406284380,1771689040977,-500.0,0.00014945,2]
[406284382,1771689040986,-150.0,0.00014945,2]
[406284384,1771689040995,-500.0,0.00014945,2]
[406284386,1771689041004,-150.0,0.00014945,2]
[406284388,1771689041013,-500.0,0.00014945,2]
[406284389,1771689041023,-500.0,0.00014945,2]
[406284390,1771689041032,-500.0,0.00014945,2]
[406284391,1771689041042,-500.0,0.00014945,2]
[406284392,1771689041051,-625.0,0.00014945,2]
[406284393,1771689041060,-500.0,0.00014945,2]
[406284394,1771689041070,-500.0,0.00014945,2]
[406284395,1771689041081,-500.0,0.00014945,2]
[406284396,1771689041090,-500.0,0.00014945,2]
[406284398,1771689041099,-500.0,0.00014945,2]
[406284400,1771689041108,-500.0,0.00014945,2]
[406284402,1771689041119,-500.0,0.00014945,2]
[406284404,1771689041129,-500.0,0.00014945,2]
[406284406,1771689041138,-1680.0,0.00014948,2]
[406284408,1771689041147,-29059.61696634,0.0001496,2]
[406284410,1771689041158,-500.0,0.00015,2]
[406284412,1771689041168,-500.0,0.00015,2]
[406284414,1771689041177,-150.0,0.00015,2]
[406284416,1771689041186,-619.0,0.00015,2]
[406284418,1771689041195,-150.0,0.00015,2]
[406284420,1771689041204,-500.0,0.00015,2]
[406284422,1771689041215,-500.0,0.00015,2]
[406284424,1771689041225,-500.0,0.00015,2]
[406284426,1771689041234,-500.0,0.00015,2]
[406284428,1771689041243,-625.0,0.00015,2]
[406284430,1771689041253,-500.0,0.00015,2]
[406284433,1771689041263,-500.0,0.00015,2]
[406284435,1771689041273,-500.0,0.00015,2]
[406284437,1771689041283,-500.0,0.00015,2]
[406284439,1771689041292,-500.0,0.00015,2]
[406284441,1771689041301,-500.0,0.00015,2]
[406284443,1771689041310,-500.0,0.00015,2]
[406284445,1771689041319,-500.0,0.00015,2]
[406284447,1771689041328,-250.0,0.00015,2]
[406284449,1771689041338,-14064.86879077,0.00015029,2]
[406284450,1771689041347,-500.0,0.00015054,2]
[406284453,1771689041356,-500.0,0.00015054,2]
[406284455,1771689041366,-150.0,0.00015054,2]
[406284457,1771689041375,-150.0,0.00015054,2]
[406284459,1771689041384,-500.0,0.00015054,2]
[406284461,1771689041392,-500.0,0.00015054,2]
[406284463,1771689041402,-389.59328754,0.00015054,2]
[406284465,1771689041412,-625.0,0.00015054,2]
[406284467,1771689041422,-500.0,0.00015054,2]
[406284469,1771689041432,-500.0,0.00015054,2]
[406284471,1771689041442,-500.0,0.00015054,2]
[406284473,1771689041452,-500.0,0.00015054,2]
[406284475,1771689041461,-600.0,0.00015054,2]
[406284477,1771689041471,-500.0,0.00015054,2]
[406284479,1771689041479,-900.0,0.00015068,2]
[406284481,1771689041489,-500.0,0.00015109,2]
[406284483,1771689041498,-500.0,0.00015109,2]
[406284485,1771689041507,-150.0,0.00015109,2]
[406284487,1771689041516,-150.0,0.00015109,2]
[406284489,1771689041525,-500.0,0.00015109,2]
[406284491,1771689041535,-625.0,0.00015109,2]
[406284493,1771689041544,-500.0,0.00015109,2]
[406284495,1771689041553,-500.0,0.00015109,2]
[406284496,1771689041563,-500.0,0.00015109,2]
[406284498,1771689041572,-500.0,0.00015109,2]
[406284499,1771689041581,-500.0,0.00015109,2]
[406284501,1771689041590,-1600.0,0.00015148,2]
[406284503,1771689041599,-250.0,0.00015164,2]
[406284505,1771689041608,-250.0,0.00015164,2]
[406284507,1771689041617,-500.0,0.00015164,2]
[406284509,1771689041628,-625.0,0.00015164,2]
[406284511,1771689041637,-500.0,0.00015164,2]
[406284513,1771689041647,-500.0,0.00015164,2]
[406284515,1771689041656,-500.0,0.00015164,2]
[406284517,1771689041665,-500.0,0.00015164,2]
[406284519,1771689041675,-500.0,0.00015173,2]
[406284521,1771689041683,-500.0,0.00015173,2]
[406284523,1771689041693,-500.13729869,0.00015173,2]
[406284525,1771689041703,-500.41653761,0.00015173,2]
[406284527,1771689041712,-502.12798245,0.00015173,2]
[406284529,1771689041721,-484.82445859,0.00015173,2]
[406284531,1771689041730,-501.38512914,0.00015173,2]
[406284533,1771689041739,-500.0,0.00015173,2]
[406284534,1771689041749,-500.0,0.00015173,2]
[406284536,1771689041759,-500.0,0.00015173,2]
[406284538,1771689041768,-239.8459294,0.00015173,2]
[406284540,1771689041777,-501.29401643,0.00015173,2]
[406284542,1771689041786,-500.0,0.00015173,2]
[406284544,1771689041795,-166.66,0.00015193,2]
[406284546,1771689041804,-629.0,0.00015219,2]
[406284548,1771689041814,-625.0,0.00015219,2]
[406284550,1771689041823,-600.0,0.00015219,2]
[406284552,1771689041831,-500.0,0.00015219,2]
[406284554,1771689041841,-625.0,0.00015274,2]
[406284556,1771689041850,-500.0,0.00015274,2]
[406284558,1771689041859,-625.0,0.00015328,2]
[406284560,1771689041869,-625.0,0.00015383,2]
[406284562,1771689041879,-167.89983179,0.00015432,2]
[406284564,1771689041889,-625.0,0.00015438,2]
[406284566,1771689041899,-29059.61696634,0.0001545,2]
[406284568,1771689041908,-625.0,0.00015493,2]
[406284570,1771689041918,-14064.86879077,0.00015508,2]
[406284572,1771689041927,-166.66,0.00015513,2]
[406284574,1771689041936,-625.0,0.00015548,2]
[406284576,1771689041945,-625.0,0.00015602,2]
[406284578,1771689041954,-311.6,0.0001564,2]
[406284580,1771689041963,-625.0,0.00015657,2]
[406284598,1771689042120,-625.0,0.00015712,2]
[406284600,1771689042130,-1000.0,0.00015721,2]
[406284602,1771689042139,-501.52699276,0.00015721,2]
[406284604,1771689042148,-500.0,0.00015721,2]
[406284606,1771689042157,-350.90980006,0.00015721,2]
[406284608,1771689042167,-169.0,0.00015759,3]
[406284610,1771689042176,-625.0,0.00015767,2]
[406284612,1771689042185,-625.0,0.00015822,2]
[406284614,1771689042195,-166.66,0.00015832,2]
[406284616,1771689042204,-625.0,0.00015876,2]
[406284618,1771689042213,-433.0,0.00015917,2]
[406284620,1771689042223,-625.0,0.00015931,2]
[406284622,1771689042232,-29059.61696634,0.0001594,2]
[406284624,1771689042242,-2346.81250728,0.0001596,2]
[406284626,1771689042251,-625.0,0.00015986,2]
[406284628,1771689042260,-14064.86879077,0.00015986,2]
[406284630,1771689042269,-517.0,0.00016,2]
[406284632,1771689042278,-625.0,0.00016041,2]
[406284634,1771689042288,-625.0,0.00016095,2]
[406284636,1771689042297,-1000.0,0.00016113,2]
[406284638,1771689042306,-625.0,0.0001615,2]
[406284639,1771689042314,-166.66,0.00016152,2]
[406284641,1771689042323,-1500.0,0.00016268,2]
[406284643,1771689042333,-587.0,0.00016324,2]
[406284645,1771689042342,-29059.61696634,0.0001643,2]
[406284647,1771689042351,-151.83672145,0.00016438,2]
[406284649,1771689042360,-900.0,0.00016438,2]
[406284650,1771689042369,-2351.0,0.00016443,2]
[406284652,1771689042378,-14064.86879077,0.00016465,2]
[406284654,1771689042387,-166.66,0.00016472,2]
[406284656,1771689042396,-311.6,0.00016509,2]
[406284659,1771689042406,-167.27,0.00016712,2]
[406284660,1771689042415,-195.93,0.00016786,2]
[406284663,1771689042425,-166.66,0.00016792,2]
[406284664,1771689042434,-165.24,0.00016816,2]
[406284666,1771689042444,-1600.0,0.00016831,2]
[406284668,1771689042454,-8449.8341433,0.00016851,2]
[406284671,1771689042463,-1915.4397987,0.00016861,2]
[406284673,1771689042472,-647.0,0.00016873,2]
[406284674,1771689042483,-500.0,0.00016916,2]
[406284676,1771689042492,-500.0,0.00016916,2]
[406284678,1771689042501,-29059.61696634,0.0001692,2]
[406284680,1771689042511,-14064.86879077,0.00016943,2]
[406284682,1771689042519,-647.0,0.00016962,2]
[406284685,1771689042529,-200.0,0.00016983,2]
[406284687,1771689042538,-178246.56073042,0.00017,2]
[406284689,1771689042547,-300.0,0.00017,2]
[406284690,1771689042556,-865.6135325,0.00017029,2]
[406284692,1771689042565,-647.0,0.00017044,2]
[406284694,1771689042575,-647.0,0.00017069,2]
[406284696,1771689042583,-647.0,0.00017163,2]
[406284698,1771689042592,-647.0,0.00017167,2]
[406284700,1771689042601,-250.0,0.00017217,2]
[406284702,1771689042611,-736.0,0.00017222,2]
[406284704,1771689042620,-1885.4128456,0.00017294,2]
[406284706,1771689042629,-427.392389,0.00017306,2]
[406284708,1771689042639,-311.6,0.00017378,2]
[406284710,1771689042648,-500.0,0.00017407,2]
[406284712,1771689042657,-500.0,0.00017407,2]
[406284714,1771689042668,-29059.61696634,0.0001741,2]
[406284716,1771689042677,-14064.86879077,0.00017422,2]
[406284717,1771689042686,-647.0,0.00017459,2]
[406284718,1771689042695,-193.1444861,0.00017546,2]
[406284719,1771689042703,-647.0,0.00017588,2]
[406284720,1771689042713,-262.0,0.00017616,2]
[406284721,1771689042722,-647.0,0.00017622,2]
[406284722,1771689042731,-647.0,0.00017651,2]
[406284723,1771689042740,-647.0,0.00017659,2]
[406284724,1771689042749,-784.71410854,0.000177,2]